Cogmind - Beta 13 @@@ ROGUE MODE // 2024.04.15 @ 19:12:03 Player: BrainTooSmol Result: Destroyed by D-53 Grenadier with Mini Grenade Launcher Performance ------------- Evolutions (0) 0 Regions Visited (2) 400 Robots Destroyed (21) 105 Value Destroyed (320) 320 Prototype IDs (0) 0 Alien Tech Used (0) 0 Bonus (60) 60 TOTAL SCORE: 885 Bonus ------- Follower Combat Kills 60 Cogmind --------- Core Integrity 0/250 Matter 266/300 Energy 95/100 System Corruption 0% Temperature Cool (0) Movement Core (700) Ox13 Location -10/Mines Parts ------- > --- POWER (1) -------- (None) > --- PROPULSION (2) --- (None) > --- UTILITY (2) ------ High-capacity Storage Unit Targeting Computer > --- WEAPON (2) ------- Hammer > --- INVENTORY (20) --- Flight Unit Flight Unit Flight Unit Flight Unit Small Storage Unit Signal Interpreter Light Assault Rifle Grenade Launcher Grenade Launcher Mining Laser Peak State ------------ > --- POWER ------------ Ion Engine > --- PROPULSION ------- Wheel Wheel > --- UTILITY ---------- High-capacity Storage Unit Targeting Computer > --- WEAPON ----------- Light Assault Rifle Light Assault Rifle > --- INVENTORY -------- Flight Unit Flight Unit Flight Unit Flight Unit Small Storage Unit Signal Interpreter Assault Rifle Grenade Launcher Grenade Launcher Hammer [Rating: 8] Favorites ----------- Power Ion Engine Engine Ion Engine Propulsion Wheel Wheel Wheel Utility Small Storage Unit Device Seismic Detector Storage Small Storage Unit Processor Targeting Computer Weapon Light Assault Rifle Energy Gun Medium Laser Ballistic Gun Light Assault Rifle Launcher Grenade Launcher Impact Weapon Hammer Build | -11 -10 -10 ------- Run | Yrd Mat Min Slots Evolved . | . . . Power . | . . . Propulsion . | . . . Utility . | . . . Weapon . | . . . Parts Attached 16 | 7 6 3 Power 2 | 1 1 . Engine 2 | 1 1 . Core . | . . . Reactor . | . . . Propulsion 3 | 2 1 . Treads . | . . . Leg . | . . . Wheel 3 | 2 1 . Hover . | . . . Flight . | . . . Utility 4 | 2 2 . Device 1 | 1 . . Storage 2 | 1 1 . Processor 1 | . 1 . Hackware . | . . . Protection . | . . . Artifact . | . . . Weapon 7 | 2 2 3 Energy Gun 1 | 1 . . Energy Cannon . | . . . Ballistic Gun 4 | 1 2 1 Ballistic Cannon . | . . . Launcher 1 | . . 1 Special Weapon . | . . . Impact Weapon 1 | . . 1 Slashing Weapon . | . . . Piercing Weapon . | . . . Special Melee Weapon . | . . . Unidentified Prototypes . | . . . Parts Lost 8 | . 3 5 Power 2 | . 1 1 Propulsion 3 | . 1 2 Utility 1 | . 1 . Weapon 2 | . . 2 Highest Loss Streak 5 | . 2 5 To Critical Strikes . | . . . Average Slot Usage (%) 97 | . 96 98 Engine 13 | . 13 13 Wheel 27 | . 26 27 Device 5 | . 9 . Storage 14 | . 14 14 Processor 7 | . 2 14 Energy Gun 5 | . 9 . Ballistic Gun 21 | . 18 27 Naked Turns . | . . . Heaviest Build 48 | 15 47 48 Greatest Support 20 | 20 20 20 Greatest Overweight (x) 4 | . 2 4 Average Overweight (x) 1 | . . 2 Largest Inventory Capacity 20 | 8 20 20 Average Capacity 13 | 7 10 20 Most Carried 11 | 2 9 11 Average Carried 6 | 1 4 10 Final Capacity 20 | 8 20 20 Final Carried 10 | 2 9 10 Class Distribution -------------------- 100% | Mutant Dominant Class ---------------- Mutant | -10/Materials Mutant | -10/Mines Resources | -11 -10 -10 ----------- Run | Yrd Mat Min Matter Collected 476 | 231 172 73 Remotely . | . . . Salvage Created 389 | 61 225 103 Parts 31 | 7 16 8 Haulers Intercepted . | . . . Recyclers Shooed . | . . . Parts Field Recycled . | . . . Retrieved Matter . | . . . Parts Self-Destructed . | . . . Prevented . | . . . Kills | -11 -10 -10 ------- Run | Yrd Mat Min Combat Hostiles Destroyed 16 | . 8 8 Guns 10 | . 8 2 AOE 6 | . . 6 Classes Destroyed 5 | 1 4 . Worker 1 | . 1 . Tunneler 3 | 3 . . Watcher 1 | . 1 . Swarmer 12 | . 6 6 Grunt 4 | . 2 2 Best Kill Streak 6 | 3 3 6 Combat Bots Only 6 | . 3 6 Max Kills in Single Turn 2 | 1 1 2 Gunslinging . | . . . Exploded 2 | . . 2 Melee . | . . . Uniques/NPCs Destroyed . | . . . Combat | -11 -10 -10 -------- Run | Yrd Mat Min Hostile Shots Fired 78 | . 50 28 Missed 18 | . 14 4 Damage Taken 917 | . 351 566 Core 266 | . 65 201 Absorbed by Shields . | . . . Core Remaining (%) 100 | 100 . . Volleys Fired 56 | 6 35 15 Largest 2 | 2 2 2 Hottest 70 | 70 70 40 Shots Fired 107 | 12 70 25 Gun 102 | 12 70 20 Cannon . | . . . Launcher 5 | . . 5 Special . | . . . Kinetic 69 | 6 43 20 Thermal 33 | 6 27 . Explosive 5 | . . 5 Electromagnetic . | . . . Robot Hit Streak 6 | 6 5 3 Robot Miss Streak 6 | 2 4 6 Penetration Max . | . . . Secondary Targets . | . . . Shots Hit Robots 50 | 8 34 8 Core Hits 29 | 4 16 9 Critical Kills . | . . . Critical Parts Destroyed . | . . . Critical Strikes 3 | 3 . . Burn 3 | 3 . . Melee Attacks 1 | . . 1 Impact 1 | . . 1 Slashing . | . . . Piercing . | . . . Sneak Attacks . | . . . Combat Hostiles . | . . . Follow-up Attacks . | . . . Damage Inflicted 955 | 111 415 429 Guns 589 | 111 415 63 Cannons . | . . . Explosions 366 | . . 366 Melee . | . . . Ramming . | . . . Kinetic 352 | 49 240 63 Thermal 237 | 62 175 . Explosive 366 | . . 366 Electromagnetic . | . . . Impact . | . . . Slashing . | . . . Piercing . | . . . Highest Corruption . | . . . Average Corruption . | . . . Corruption Purged . | . . . Corruption Blocked . | . . . Overload Shots . | . . . Overflow Damage . | . . . Projectiles . | . . . Explosions . | . . . Melee . | . . . Knockbacks . | . . . Impact . | . . . Kinetic . | . . . Secondary . | . . . Self-Inflicted Damage . | . . . Shots . | . . . Rammed . | . . . Targets Rammed . | . . . Kicked . | . . . Crushed . | . . . Highest Temperature 186 | 27 186 12 Average Temperature 56 | 11 70 8 Received Heat Transfer 147 | . 114 33 Siege Activations . | . . . Robots Corrupted . | . . . Combat Hostiles . | . . . Parts Fried . | . . . Impact Corruptions . | . . . Robots Melted . | . . . Combat Hostiles . | . . . Parts Melted 3 | 3 . . Heat Transferred 925 | 407 518 . Parts Sabotaged . | . . . Parts Stolen . | . . . Parts Stripped . | . . . Power Chain Reactions . | . . . Alert | -11 -10 -10 ------- Run | Yrd Mat Min Peak Influence 226 | 15 226 157 Initial 49 | . 9 49 Average 78 | 4 87 81 Maximum Alert Level 1 | . 1 . Low Security (%) 99 | 100 99 100 Level 1 . | . . . Level 2 . | . . . Level 3 . | . . . Level 4 . | . . . Level 5 . | . . . High Security . | . . . Max Security . | . . . Squads Dispatched . | . . . Investigation . | . . . Extermination . | . . . Reinforcement . | . . . Assault . | . . . Garrison . | . . . Intercept . | . . . Searches Triggered . | . . . Construction Impeded . | . . . Haulers Reinforced . | . . . Active Scanning Responses . | . . . Cargo Convoy Interrupts . | . . . Stealth | -11 -10 -10 --------- Run | Yrd Mat Min Distress Signals . | . . . Communications Jammed . | . . . Distress Signals . | . . . Times Spotted 25 | . 13 12 Peak Tracking Total 4 | . 3 4 Tactical Retreats 2 | . 2 . Traps | -11 -10 -10 ------- Run | Yrd Mat Min Traps Triggered . | . . . Indirectly . | . . . Trap Hack Attempts . | . . . Triggered . | . . . Disarmed . | . . . Reprogrammed . | . . . Reused . | . . . Traps Extracted . | . . . Installed . | . . . Triggered . | . . . Machines | -11 -10 -10 ---------- Run | Yrd Mat Min Machines Disabled . | . . . Max in Single Turn . | . . . Machines Repaired . | . . . Machines Dismantled . | . . . Machines Sabotaged . | . . . Overloaded Fab Kills . | . . . Hacking | -11 -10 -10 --------- Run | Yrd Mat Min Machines Accessed 5 | . 5 . Terminals 5 | . 5 . Fabricators . | . . . Repair Stations . | . . . Recycling Units . | . . . Scanalyzers . | . . . Garrison Access . | . . . Total Hacks 17 | . 17 . Successful 6 | . 6 . Failed 11 | . 11 . Catastrophic 1 | . 1 . Database Lockouts . | . . . Manual 15 | . 15 . Terminals 17 | . 17 . Fabricators . | . . . Repair Stations . | . . . Recycling Units . | . . . Scanalyzers . | . . . Garrison Access . | . . . Terminal Hacks 2 | . 2 . Locate Traps 1 | . 1 . Zone Layout 1 | . 1 . Fabricator Hacks . | . . . Repair Station Hacks . | . . . Recycling Unit Hacks . | . . . Scanalyzer . | . . . Garrison Access Hacks . | . . . Unauthorized Hacks 4 | . 4 . Terminals 4 | . 4 . Botnet 2 | . 2 . Disrupt 1 | . 1 . Operators 1 | . 1 . Fabricators . | . . . Repair Stations . | . . . Recycling Units . | . . . Scanalyzers . | . . . Garrison Access . | . . . Data Cores Recovered . | . . . Used . | . . . Hacking Detections 5 | . 5 . Full Trace Events . | . . . Feedback Events . | . . . Feedback Blocked . | . . . Robot Schematics Acquired . | . . . Robots Built . | . . . Authchips . | . . . Time . | . . . Total Robot Build Rating . | . . . Part Schematics Acquired . | . . . Parts Built . | . . . Authchips . | . . . Time . | . . . Total Part Build Rating . | . . . Parts Repaired . | . . . Time . | . . . Parts Recycled . | . . . Recycled Matter . | . . . Retrieved Matter . | . . . Retrieved Components . | . . . Parts Scanalyzed . | . . . Part Schematics Acquired . | . . . Parts Damaged . | . . . Bothacking | -11 -10 -10 ------------ Run | Yrd Mat Min Used RIF Installer . | . . . Robots Hacked . | . . . Non-combat . | . . . Combat . | . . . Robot Hacks Applied . | . . . Relay Couplers Released . | . . . Fabnet Peak Effective % . | . . . Robots Rewired . | . . . Allies Hacked . | . . . Hacks Repelled . | . . . Allies | -11 -10 -10 -------- Run | Yrd Mat Min Total Allies 1 | . . 1 Largest Group 1 | . . 1 Highest-Rated Group 31 | . . 31 Highest-Rated Ally 31 | . . 31 Total Orders . | . . . Ally Attacks 11 | . . 11 Total Damage 126 | . . 126 Kills 2 | . . 2 Allies Corrupted . | . . . Allies Melted 1 | . . 1 Intel | -11 -10 -10 ------- Run | Yrd Mat Min Robot Analysis Total . | . . . Derelict Logs Recovered 1 | . . 1 Drone Launches . | . . . Drone Recoveries . | . . . Exploration | -11 -10 -10 ------------- Run | Yrd Mat Min Turns Passed 1262 | 108 657 497 Spaces Moved 881 | 72 426 383 Core 1 | 1 . . Treads . | . . . Legs . | . . . Wheels 880 | 71 426 383 Hover . | . . . Flight . | . . . Fastest Speed 50 | 50 80 110 Average Speed 97 | 79 88 110 Slowest Speed 140 | 80 110 140 Overloaded Moves . | . . . Propulsion Burnouts . | . . . Robots Hopped . | . . . Cave-ins Triggered . | . . . Exploration Rate (%) 48 | 5 66 75 Regions Visited 2 Branch Regions 1 Pre-discovered Areas 1 | . . 1 Known Exits Taken . | . . . Unknown Exits Taken 2 | 1 1 . Scrap Searched 1 | . . 1 Spaces Dug . | . . . Terrain Destroyed 19 | . . 19 Melee . | . . . Projectile . | . . . AOE 19 | . . 19 Terrain Rammed . | . . . Walls Destroyed . | . . . Machines Disabled . | . . . Actions | -11 -10 -10 --------- Run | Yrd Mat Min Total 1179 | 107 639 433 Wait 215 | 21 165 29 Move 879 | 71 425 383 Hop . | . . . Pick Up 11 | 2 7 2 Fast Attach 10 | 7 3 . Attach 2 | . 1 1 Detach . | . . . Swap 4 | . 2 2 Drop 1 | . 1 . Fire 56 | 6 35 15 Melee 1 | . . 1 Ram . | . . . Kick . | . . . Crush . | . . . Escape Stasis . | . . . Rewire . | . . . Trap . | . . . Miscellaneous . | . . . Route ------- -11/Scrapyard -10/Materials (discovered 4 exits: [*Mat x2] / [*Min x2]) -10/Mines (discovered 2 exits: [*Mat x2]) History --------- Turn | Location | Event 11 | -11/Scrapyard | Discovered new exit (range 16) 109 | -11/Scrapyard | Entered Materials 195 | -10/Materials | Discovered new exit (range 3) 308 | -10/Materials | Build established: Mutant 396 | -10/Materials | Discovered new exit (range 13) 600 | -10/Materials | Derelicts attacked the area 667 | -10/Materials | Discovered new exit (range 14) 734 | -10/Materials | Discovered new exit (range 13) 766 | -10/Materials | Entered Mines 792 | -10/Mines | YI-UF0 nonchalantly dropped a Grenade Launcher on the ground 834 | -10/Mines | Discovered new exit (range 11) 933 | -10/Mines | Learned location of Zion (-7) 938 | -10/Mines | Received a Mining Laser from a helpful Derelict 1204 | -10/Mines | Discovered new exit (range 10) 1240 | -10/Mines | Assembled infested the area 1254 | -10/Mines | Core integrity fell below 50% 1260 | -10/Mines | Core integrity fell below 20% 1263 | -10/Mines | Destroyed by D-53 Grenadier with Mini Grenade Launcher Last Messages --------------- 01082_ Found 30 Matter. 01082_ R-06 Scavenger collects Ion Engine. 01176_ K-01 Serf collects debris. 01184_ S-10 Pest destroyed. 01196_ The unstable cave ceiling collapses. 01204_ EXIT=FOUND 01240_ ALERT: Infestation in the mines, dispatching Demolisher response squad. 01251_ C-30 ARC bursts open, deploying its payload. 01251_ D-53 Grenadier unfolds itself. 01253_ Wheel destroyed. 01254_ The unstable cave ceiling collapses. 01257_ Assault Rifle destroyed. 01257_ Ion Engine destroyed. 01258_ The unstable cave ceiling collapses. 01258_ Acquired 21 matter. 01259_ Lgt. Assault Rifle destroyed. 01259_ Wheel destroyed. 01259_ D-53 Grenadier destroyed. 01261_ The unstable cave ceiling collapses. Map ----- +----------------------------------------------------+ | #??## #???# ### #???????# #??# | | #######??# #???# ## #???????# #??# | | ##???????## ##???# #######?# #??## | | #??????### #######????## ## ## ### #???? | | ??????## ##???????????# ### ## ##### | | ??????# ##???????????# #?# ## | | ##????# ##???######## ### ### ##### | | ###### ##### ## ## ##?# #???? | | # #??# #???? | | ## ### < ##?# #???? | | ## #?## ##### #### ### #???? | | #??#### #???## #?## ## #???? | | ####?????## ##????## #??##### #???? | | ##?????????## ##??????## ##??????## #???? | | #???????????####????????######??###?### ##???? | | ?????????????????????????## ### #???## ##????? | | ????????????????????????## #????# #?????? | | ??????????????###??????## #????## ##?????? | | ????????????### #?????# #??????###??????? | | ####???????## #????? #????????????????? | | # ##??????# #??##? #????????????????? | | #??????# #### ## #????????????????? | | #???????# ## # #????????????????? | | ##????????# """ #?????????????????? | | ###??????????# """ ##????????????????? | | ##???######??## """ @d # ##???????????????? | | #???## ##?# #???????????????? | | #??## #?# < t # #???????????????? | | #### #### ## #???????????????? | | ## #### ### ##???????????????? | | ## ##?### ## #???????????????? | | % # #????# ##???????????????? | | ## % = #???# # #########?????????? | | #### #???## #???? | | #??# ##???# ########## #????????? | | #??# #???### ###???????????????????? | | ##?## #?????###?????????????????????? | | ##?## # #?????????????????????????????? | | #??# = #????????????????????????????? | | #### * ### #????????????????????????????? | | ![ # ##?## #???????????????????????????? | | =%] # #???## #??????????????????????????? | | ### # ##?????# #??????????????????????????? | | #?# ##??????# ##??????????????????????????? | | #?# ##??????###???????????????????????????? | | ##?#### ####?????????????????????????????????? | | #?????# ##????????????????????????????????? | | ??????## #????????????????????????????????? | | ???????## """ #????????????????????????????????? | | ????????# """ ##???????????????????????????????? | +----------------------------------------------------+ Best States ------------- Heat Dissipation 25 Energy Generation 10 Energy Capacity 250 Matter Stores 300 Matter Capacity 300 Sight Range 16 Terrain Scan Density 10 Evasion (%) 44 Targeting Accuracy 5 Item Schematics ----------------- None Robot Schematics ------------------ None Fabricated ------------ Nothing Alien Tech Used ----------------- None Achievements -------------- None Challenges ------------ None Game ------ Seed DefenseFrostScythe Manual? 0 Play Time 00:12:49 Cumulative 42.6 hours Start 2024.04.15 @ 19:00:10 End 2024.04.15 @ 19:12:03 Sessions 1 Manual Loads 0 Difficulty Rogue Special Mode None Game No. 30 Rogue 30 Adventurer 0 Explorer 0 Win Type - Total 1 Types 1/0/0/0/0/0/0/0/0 Lore% 42 Gallery% 33 Achievement% 35 Wizard Run 0 Options --------- Layout 0 ASCII 0 Keyboard 0 Movement Mouse Keybinds 0 Fullscreen 1 Font 18/SmallcapsGlow Map View 76x50 Zoom Use 0% Tactical HUD 1 Map Filters NONE Filters NONE Steam 1 RUN: e6de5550-b062-42df-8dd2-56774b93e0ab